[Event "*** Titled Tuesday Blitz"]
[Site "Chess.com"]
[Date "2021.03.30"]
[Round "11"]
[White "NiranjanNavalgund"]
[Black "dosto07"]
[Result "1-0"]
[WhiteElo "2502"]
[BlackElo "2409"]
[TimeControl "180+1"]
[EndTime "12:08:24 PDT"]
[Termination "NiranjanNavalgund won on time"]

1. d4 {[%clk 0:03:00.9]} 1... d5 {[%clk 0:02:59.2]} 2. Nf3 {[%clk 0:03:00.6]}
2... Nf6 {[%clk 0:02:59.2]} 3. c4 {[%clk 0:03:01.1]} 3... dxc4 {[%clk
0:03:00.1]} 4. e3 {[%clk 0:03:01.3]} 4... e6 {[%clk 0:03:00.4]} 5. Bxc4 {[%clk
0:03:01.6]} 5... c5 {[%clk 0:03:01.1]} 6. O-O {[%clk 0:03:02]} 6... a6 {[%clk
0:03:01.1]} 7. dxc5 {[%clk 0:03:02.4]} 7... Bxc5 {[%clk 0:02:58.1]} 8. b3 {[%clk
0:03:01.7]} 8... Nc6 {[%clk 0:02:53.1]} 9. Bb2 {[%clk 0:03:01.9]} 9... Qxd1
{[%clk 0:02:47.1]} 10. Rxd1 {[%clk 0:03:02.8]} 10... Ke7 {[%clk 0:02:46.9]} 11.
a3 {[%clk 0:03:02.3]} 11... Rd8 {[%clk 0:02:37.9]} 12. Rxd8 {[%clk 0:03:00.7]}
12... Kxd8 {[%clk 0:02:37.7]} 13. b4 {[%clk 0:03:01.6]} 13... Bd6 {[%clk
0:02:25.1]} 14. Nc3 {[%clk 0:03:02]} 14... Ke7 {[%clk 0:02:24.5]} 15. Ng5 {[%clk
0:02:58.9]} 15... Bd7 {[%clk 0:02:15.6]} 16. Nce4 {[%clk 0:02:59]} 16... Nxe4
{[%clk 0:02:14.4]} 17. Nxe4 {[%clk 0:02:59.9]} 17... Be5 {[%clk 0:02:13]} 18.
Bxe5 {[%clk 0:02:57.8]} 18... Nxe5 {[%clk 0:02:11.3]} 19. Be2 {[%clk 0:02:55]}
19... Rc8 {[%clk 0:01:55.3]} 20. f4 {[%clk 0:02:54.6]} 20... Nc4 {[%clk
0:01:46.5]} 21. Kf2 {[%clk 0:02:50.6]} 21... b6 {[%clk 0:01:23.3]} 22. a4 {[%clk
0:02:30.4]} 22... a5 {[%clk 0:01:15.5]} 23. bxa5 {[%clk 0:02:30.1]} 23... Nxa5
{[%clk 0:01:13.2]} 24. Bd3 {[%clk 0:02:26]} 24... Bc6 {[%clk 0:00:53.2]} 25. Rb1
{[%clk 0:02:22]} 25... Rb8 {[%clk 0:00:51.2]} 26. Nc5 {[%clk 0:02:18.1]} 26...
Kd6 {[%clk 0:00:42.4]} 27. Ne4+ {[%clk 0:02:13]} 27... Bxe4 {[%clk 0:00:38.2]}
28. Bxe4 {[%clk 0:02:12.7]} 28... f5 {[%clk 0:00:34]} 29. Bf3 {[%clk 0:02:12.2]}
29... Nc4 {[%clk 0:00:24.8]} 30. Rb5 {[%clk 0:02:09.2]} 30... Rc8 {[%clk
0:00:19.3]} 31. Be2 {[%clk 0:02:04.4]} 31... Rc5 {[%clk 0:00:13.1]} 32. Bxc4
{[%clk 0:02:03.3]} 32... Rxc4 {[%clk 0:00:12.9]} 33. Rxb6+ {[%clk 0:02:03.2]}
33... Ke7 {[%clk 0:00:13.5]} 34. Rb7+ {[%clk 0:02:00.5]} 34... Kf6 {[%clk
0:00:13.6]} 35. Ra7 {[%clk 0:02:00.7]} 35... Rc2+ {[%clk 0:00:13.3]} 36. Kf3
{[%clk 0:02:00.2]} 36... Ra2 {[%clk 0:00:14.2]} 37. h3 {[%clk 0:01:59.6]} 37...
h6 {[%clk 0:00:14.1]} 38. g4 {[%clk 0:01:59.8]} 38... Rh2 {[%clk 0:00:09.8]} 39.
Kg3 {[%clk 0:01:54.3]} 39... Re2 {[%clk 0:00:09.4]} 40. Kf3 {[%clk 0:01:54.7]}
40... Rh2 {[%clk 0:00:09]} 41. g5+ {[%clk 0:01:52.3]} 41... hxg5 {[%clk
0:00:07.8]} 42. fxg5+ {[%clk 0:01:53.2]} 42... Kg6 {[%clk 0:00:06.8]} 43. Kg3
{[%clk 0:01:45.5]} 43... Ra2 {[%clk 0:00:06.6]} 44. h4 {[%clk 0:01:44.3]} 44...
e5 {[%clk 0:00:06.4]} 45. Ra6+ {[%clk 0:01:43.9]} 45... Kh5 {[%clk 0:00:05.7]}
46. Ra8 {[%clk 0:01:37.6]} 46... Ra3 {[%clk 0:00:05.2]} 47. Rh8+ {[%clk
0:01:23.4]} 47... Kg6 {[%clk 0:00:04.5]} 48. a5 {[%clk 0:01:21.6]} 48... f4+
{[%clk 0:00:04.5]} 49. Kg4 {[%clk 0:01:21.3]} 49... Rxe3 {[%clk 0:00:03.7]} 50.
h5+ {[%clk 0:01:21.7]} 50... Kf7 {[%clk 0:00:03.4]} 51. g6+ {[%clk 0:01:21.9]}
51... Ke7 {[%clk 0:00:02.6]} 52. Rg8 {[%clk 0:01:19.5]} 52... Rg3+ {[%clk
0:00:02.3]} 53. Kh4 {[%clk 0:01:19.8]} 53... Ra3 {[%clk 0:00:02.4]} 54. Rxg7+
{[%clk 0:01:19.8]} 54... Kf6 {[%clk 0:00:03.3]} 55. Rf7+ {[%clk 0:01:20]} 55...
Ke6 {[%clk 0:00:04.2]} 56. Rf8 {[%clk 0:01:19.4]} 56... f3 {[%clk 0:00:04.1]}
57. g7 {[%clk 0:01:18.7]} 57... f2 {[%clk 0:00:02.7]} 58. g8=Q+ {[%clk
0:01:18.7]} 1-0

[Event "*** Titled Tuesday Blitz"]
[Site "Chess.com"]
[Date "2021.03.30"]
[Round "11"]
[White "XDPS"]
[Black "Agoking701"]
[Result "1/2-1/2"]
[WhiteElo "2743"]
[BlackElo "2361"]
[TimeControl "180+1"]
[EndTime "12:08:27 PDT"]
[Termination "Game drawn by repetition"]

1. Nf3 {[%clk 0:03:00.9]} 1... Nf6 {[%clk 0:02:05.8]} 2. b3 {[%clk 0:03:00.6]}
2... g6 {[%clk 0:02:06.7]} 3. Bb2 {[%clk 0:03:01.1]} 3... Bg7 {[%clk 0:02:07.6]}
4. g3 {[%clk 0:03:01.5]} 4... O-O {[%clk 0:02:08.5]} 5. Bg2 {[%clk 0:03:02.1]}
5... b6 {[%clk 0:02:08.1]} 6. O-O {[%clk 0:03:01.8]} 6... Bb7 {[%clk 0:02:07.8]}
7. c4 {[%clk 0:03:02.4]} 7... c5 {[%clk 0:02:06.8]} 8. d4 {[%clk 0:03:02.6]}
8... cxd4 {[%clk 0:02:04.5]} 9. Qxd4 {[%clk 0:03:03.5]} 9... d5 {[%clk 0:01:50]}
10. Rd1 {[%clk 0:02:44.8]} 10... Qc7 {[%clk 0:01:23.2]} 11. cxd5 {[%clk
0:02:34.7]} 11... Bxd5 {[%clk 0:01:24.1]} 12. Nc3 {[%clk 0:02:34.9]} 12... Rd8
{[%clk 0:01:12.9]} 13. Rac1 {[%clk 0:02:22.8]} 13... Nc6 {[%clk 0:00:57.2]} 14.
Qh4 {[%clk 0:02:09.8]} 14... Bxf3 {[%clk 0:00:53.2]} 15. Bxf3 {[%clk 0:02:08.7]}
15... Rxd1+ {[%clk 0:00:54.1]} 16. Rxd1 {[%clk 0:02:08.7]} 16... Rd8 {[%clk
0:00:54]} 17. Rxd8+ {[%clk 0:01:46.2]} 17... Nxd8 {[%clk 0:00:52.4]} 18. Qa4
{[%clk 0:01:44]} 18... Nd7 {[%clk 0:00:48.4]} 19. Nd5 {[%clk 0:01:38.5]} 19...
Qd6 {[%clk 0:00:28.9]} 20. Bxg7 {[%clk 0:01:38]} 20... Kxg7 {[%clk 0:00:29.8]}
21. Qxa7 {[%clk 0:01:38.3]} 21... Ne6 {[%clk 0:00:28.5]} 22. Qa4 {[%clk
0:01:34]} 22... Ne5 {[%clk 0:00:25.7]} 23. Bg2 {[%clk 0:01:16.1]} 23... Qc5
{[%clk 0:00:23.1]} 24. h3 {[%clk 0:01:02.1]} 24... Nd4 {[%clk 0:00:22.3]} 25.
Nf4 {[%clk 0:00:42.8]} 25... g5 {[%clk 0:00:20]} 26. Nh5+ {[%clk 0:00:19.7]}
26... Kh6 {[%clk 0:00:20.4]} 27. g4 {[%clk 0:00:14.5]} 27... Nxe2+ {[%clk
0:00:20.7]} 28. Kf1 {[%clk 0:00:13.7]} 28... Nf4 {[%clk 0:00:16]} 29. Nxf4
{[%clk 0:00:13.7]} 29... Qc1+ {[%clk 0:00:16.5]} 30. Ke2 {[%clk 0:00:14.2]}
30... gxf4 {[%clk 0:00:14.8]} 31. Qe4 {[%clk 0:00:12.2]} 31... Qb2+ {[%clk
0:00:13.1]} 32. Kf1 {[%clk 0:00:10.9]} 32... Qc1+ {[%clk 0:00:13.2]} 33. Ke2
{[%clk 0:00:11.1]} 33... Qb2+ {[%clk 0:00:13]} 34. Ke1 {[%clk 0:00:11]} 34...
Qc1+ {[%clk 0:00:12.8]} 35. Ke2 {[%clk 0:00:10.1]} 1/2-1/2

[Event "*** Titled Tuesday Blitz"]
[Site "Chess.com"]
[Date "2021.03.30"]
[Round "11"]
[White "SantoBlue"]
[Black "Jungle_Jaguar"]
[Result "1/2-1/2"]
[WhiteElo "2802"]
[BlackElo "2631"]
[TimeControl "180+1"]
[EndTime "12:08:28 PDT"]
[Termination "Game drawn by stalemate"]

1. e4 {[%clk 0:03:00.9]} 1... c5 {[%clk 0:03:00.2]} 2. Nf3 {[%clk 0:03:00.6]}
2... d6 {[%clk 0:03:00.9]} 3. d4 {[%clk 0:03:00.4]} 3... cxd4 {[%clk 0:03:01.8]}
4. Nxd4 {[%clk 0:03:01]} 4... Nf6 {[%clk 0:03:02.5]} 5. Nc3 {[%clk 0:03:01.6]}
5... Nc6 {[%clk 0:03:03]} 6. Bg5 {[%clk 0:02:58.5]} 6... e6 {[%clk 0:03:03.3]}
7. Bb5 {[%clk 0:02:59]} 7... Bd7 {[%clk 0:03:02.5]} 8. Qd3 {[%clk 0:02:58.7]}
8... a6 {[%clk 0:02:56.1]} 9. Bxc6 {[%clk 0:02:57.6]} 9... bxc6 {[%clk
0:02:56.1]} 10. O-O-O {[%clk 0:02:58.2]} 10... Qb6 {[%clk 0:02:52.6]} 11. e5
{[%clk 0:02:55.1]} 11... Nd5 {[%clk 0:02:50.8]} 12. exd6 {[%clk 0:02:45.5]}
12... Bxd6 {[%clk 0:02:49.4]} 13. Ne4 {[%clk 0:02:43.6]} 13... Be5 {[%clk
0:02:36.5]} 14. Nb3 {[%clk 0:02:22.5]} 14... O-O {[%clk 0:02:23]} 15. c4 {[%clk
0:02:19]} 15... Nb4 {[%clk 0:02:23.3]} 16. Qxd7 {[%clk 0:02:15.1]} 16... Nxa2+
{[%clk 0:02:12.1]} 17. Kc2 {[%clk 0:02:15.3]} 17... a5 {[%clk 0:01:58.3]} 18.
Be3 {[%clk 0:02:10.5]} 18... Qb8 {[%clk 0:01:52.3]} 19. Bc5 {[%clk 0:02:05.1]}
19... a4 {[%clk 0:01:51.8]} 20. Nd4 {[%clk 0:02:03.2]} 20... Bxd4 {[%clk
0:01:47.6]} 21. Qxd4 {[%clk 0:01:57.5]} 21... Qb3+ {[%clk 0:01:44.8]} 22. Kb1
{[%clk 0:01:57.4]} 22... Nb4 {[%clk 0:01:45.3]} 23. Bxb4 {[%clk 0:01:54.6]}
23... Qxb4 {[%clk 0:01:45.9]} 24. Qc3 {[%clk 0:01:50]} 24... Qb8 {[%clk
0:01:43.8]} 25. Qa3 {[%clk 0:01:45.8]} 25... Qf4 {[%clk 0:01:41]} 26. f3 {[%clk
0:01:45.6]} 26... Rfb8 {[%clk 0:01:41]} 27. Rd3 {[%clk 0:01:43.1]} 27... f5
{[%clk 0:01:22.3]} 28. Nc5 {[%clk 0:01:40.4]} 28... Qxc4 {[%clk 0:01:21.2]} 29.
Rc1 {[%clk 0:01:40.1]} 29... Qh4 {[%clk 0:01:17.1]} 30. Nxe6 {[%clk 0:01:38.7]}
30... Qxh2 {[%clk 0:01:17.2]} 31. Rd7 {[%clk 0:01:32.7]} 31... Qe5 {[%clk
0:01:12.7]} 32. Rxg7+ {[%clk 0:01:31.5]} 32... Kh8 {[%clk 0:01:13]} 33. Qc3
{[%clk 0:01:22.7]} 33... Qxc3 {[%clk 0:01:07]} 34. Rxc3 {[%clk 0:01:22.6]} 34...
Re8 {[%clk 0:01:07.6]} 35. Rxc6 {[%clk 0:01:16.3]} 35... Rxe6 {[%clk 0:01:07]}
36. Rxh7+ {[%clk 0:01:16.8]} 36... Kxh7 {[%clk 0:01:07.3]} 37. Rxe6 {[%clk
0:01:17.5]} 37... Rg8 {[%clk 0:01:02.2]} 38. Re2 {[%clk 0:01:16.9]} 38... Kg6
{[%clk 0:00:57.4]} 39. Ka2 {[%clk 0:01:17.2]} 39... Rd8 {[%clk 0:00:52.8]} 40.
Ka3 {[%clk 0:01:12.3]} 40... Rd4 {[%clk 0:00:53.1]} 41. Re6+ {[%clk 0:01:07.7]}
41... Kg5 {[%clk 0:00:50.8]} 42. Ra6 {[%clk 0:01:06.8]} 42... Rd2 {[%clk
0:00:48.7]} 43. Rxa4 {[%clk 0:00:59.4]} 43... Rxg2 {[%clk 0:00:49.1]} 44. Rc4
{[%clk 0:00:59.1]} 44... Rg3 {[%clk 0:00:46.2]} 45. Rc3 {[%clk 0:00:59.3]} 45...
Kf4 {[%clk 0:00:46.7]} 46. b4 {[%clk 0:00:51.4]} 46... Rxf3 {[%clk 0:00:31.3]}
47. Rxf3+ {[%clk 0:00:50.5]} 47... Kxf3 {[%clk 0:00:31.8]} 48. b5 {[%clk
0:00:51.4]} 48... f4 {[%clk 0:00:30.9]} 49. b6 {[%clk 0:00:52.3]} 49... Kg2
{[%clk 0:00:29.2]} 50. b7 {[%clk 0:00:52.7]} 50... f3 {[%clk 0:00:29.9]} 51.
b8=Q {[%clk 0:00:52.8]} 51... f2 {[%clk 0:00:29.6]} 52. Qg8+ {[%clk 0:00:53.3]}
52... Kh2 {[%clk 0:00:28.7]} 53. Qh7+ {[%clk 0:00:53.2]} 53... Kg2 {[%clk
0:00:29]} 54. Qe4+ {[%clk 0:00:52.9]} 54... Kh2 {[%clk 0:00:28.7]} 55. Qh4+
{[%clk 0:00:52.3]} 55... Kg2 {[%clk 0:00:28.9]} 56. Qg4+ {[%clk 0:00:52.8]}
56... Kh2 {[%clk 0:00:29.3]} 57. Qf3 {[%clk 0:00:53.3]} 57... Kg1 {[%clk
0:00:29.2]} 58. Qg3+ {[%clk 0:00:53.3]} 58... Kh1 {[%clk 0:00:29.8]} 59. Qxf2
{[%clk 0:00:52.9]} 1/2-1/2

[Event "*** Titled Tuesday Blitz"]
[Site "Chess.com"]
[Date "2021.03.30"]
[Round "11"]
[White "tteshan"]
[Black "lukazz029"]
[Result "1-0"]
[WhiteElo "2328"]
[BlackElo "2176"]
[TimeControl "180+1"]
[EndTime "12:08:28 PDT"]
[Termination "tteshan won by resignation"]

1. d4 {[%clk 0:02:59.7]} 1... Nf6 {[%clk 0:02:57.8]} 2. Nf3 {[%clk 0:02:58.9]}
2... e6 {[%clk 0:02:57.5]} 3. Bf4 {[%clk 0:02:54]} 3... Bd6 {[%clk 0:02:56.1]}
4. Bxd6 {[%clk 0:02:45.3]} 4... cxd6 {[%clk 0:02:57]} 5. c4 {[%clk 0:02:44]}
5... d5 {[%clk 0:02:54.4]} 6. cxd5 {[%clk 0:02:37.3]} 6... Nxd5 {[%clk
0:02:52.2]} 7. e4 {[%clk 0:02:34.2]} 7... Nb6 {[%clk 0:02:51.7]} 8. Nc3 {[%clk
0:02:32.3]} 8... O-O {[%clk 0:02:51.3]} 9. Bd3 {[%clk 0:02:31.8]} 9... d5 {[%clk
0:02:50.9]} 10. e5 {[%clk 0:02:31.3]} 10... Nc6 {[%clk 0:02:51]} 11. Qc2 {[%clk
0:02:28.8]} 11... h6 {[%clk 0:02:50]} 12. a3 {[%clk 0:02:26.9]} 12... Bd7 {[%clk
0:02:48.1]} 13. O-O {[%clk 0:02:26.2]} 13... Rc8 {[%clk 0:02:47.7]} 14. Qe2
{[%clk 0:02:17.2]} 14... Na5 {[%clk 0:02:46.1]} 15. Rac1 {[%clk 0:02:04.9]}
15... Nac4 {[%clk 0:02:40.9]} 16. Bb1 {[%clk 0:02:02.7]} 16... g6 {[%clk
0:02:37.9]} 17. g3 {[%clk 0:01:55.5]} 17... Kg7 {[%clk 0:02:37.7]} 18. Nh4
{[%clk 0:01:52.3]} 18... a6 {[%clk 0:02:19.9]} 19. Qd3 {[%clk 0:01:50.9]} 19...
Nxb2 {[%clk 0:02:17.3]} 20. Qf3 {[%clk 0:01:09.2]} 20... N2c4 {[%clk 0:02:10.8]}
21. Qg4 {[%clk 0:01:04.2]} 21... Be8 {[%clk 0:02:02.9]} 22. f4 {[%clk
0:00:53.1]} 22... Nxa3 {[%clk 0:02:01.9]} 23. Bd3 {[%clk 0:00:49.2]} 23... Qe7
{[%clk 0:01:48.2]} 24. f5 {[%clk 0:00:47.9]} 24... Qb4 {[%clk 0:01:46]} 25. fxg6
{[%clk 0:00:35.6]} 25... fxg6 {[%clk 0:01:45.6]} 26. Bxg6 {[%clk 0:00:26.2]}
26... Kh8 {[%clk 0:00:30.8]} 27. Bxe8 {[%clk 0:00:24.9]} 27... Rcxe8 {[%clk
0:00:27.3]} 28. Ng6+ {[%clk 0:00:25]} 28... Kh7 {[%clk 0:00:27.8]} 29. Nxf8+
{[%clk 0:00:24.9]} 29... Rxf8 {[%clk 0:00:28.3]} 30. Rxf8 {[%clk 0:00:20.6]}
30... Qxf8 {[%clk 0:00:29.2]} 31. Rf1 {[%clk 0:00:20.3]} 31... Qg8 {[%clk
0:00:26.7]} 32. Qh5 {[%clk 0:00:17.2]} 32... Qg7 {[%clk 0:00:24]} 33. Rf7 {[%clk
0:00:16.7]} 33... Kg8 {[%clk 0:00:21.9]} 34. Rxg7+ {[%clk 0:00:16.7]} 34... Kxg7
{[%clk 0:00:22.1]} 35. Qg4+ {[%clk 0:00:17.6]} 35... Kf7 {[%clk 0:00:21.6]} 36.
Qh5+ {[%clk 0:00:18]} 36... Ke7 {[%clk 0:00:21.5]} 37. Qxh6 {[%clk 0:00:18.3]}
37... Nb5 {[%clk 0:00:22.1]} 38. Qg7+ {[%clk 0:00:18.5]} 38... Kd8 {[%clk
0:00:22]} 39. Qf8+ {[%clk 0:00:18.9]} 39... Kc7 {[%clk 0:00:22]} 40. Qc5+ {[%clk
0:00:19.5]} 40... Kd7 {[%clk 0:00:21.5]} 41. Qxb6 {[%clk 0:00:20]} 41... Nxc3
{[%clk 0:00:21.8]} 42. Qxb7+ {[%clk 0:00:19.8]} 42... Ke8 {[%clk 0:00:22.3]} 43.
Qc6+ {[%clk 0:00:19.8]} 43... Kf7 {[%clk 0:00:22.4]} 44. Qxc3 {[%clk 0:00:20.7]}
1-0

[Event "*** Titled Tuesday Blitz"]
[Site "Chess.com"]
[Date "2021.03.30"]
[Round "11"]
[White "CrushingKings"]
[Black "KarateBaby"]
[Result "1-0"]
[WhiteElo "2464"]
[BlackElo "2331"]
[TimeControl "180+1"]
[EndTime "12:08:29 PDT"]
[Termination "CrushingKings won by resignation"]

1. e4 {[%clk 0:03:00.9]} 1... g6 {[%clk 0:02:37.4]} 2. d4 {[%clk 0:02:59.9]}
2... Bg7 {[%clk 0:02:38.3]} 3. Nc3 {[%clk 0:03:00.1]} 3... d6 {[%clk 0:02:35.9]}
4. Be3 {[%clk 0:02:59.5]} 4... a6 {[%clk 0:02:29.4]} 5. a4 {[%clk 0:02:57.9]}
5... Nc6 {[%clk 0:02:27.2]} 6. Qd2 {[%clk 0:02:53.9]} 6... e5 {[%clk 0:02:18]}
7. Nge2 {[%clk 0:02:52.8]} 7... exd4 {[%clk 0:02:15.3]} 8. Nxd4 {[%clk
0:02:51.7]} 8... Nf6 {[%clk 0:02:15.8]} 9. f3 {[%clk 0:02:44.5]} 9... O-O {[%clk
0:02:08.7]} 10. Bc4 {[%clk 0:02:26.9]} 10... Ne5 {[%clk 0:02:02.7]} 11. Bb3
{[%clk 0:02:24.1]} 11... Nfd7 {[%clk 0:01:40.8]} 12. Bh6 {[%clk 0:02:18.6]}
12... Qh4+ {[%clk 0:01:37]} 13. g3 {[%clk 0:02:17.2]} 13... Qxh6 {[%clk
0:01:33.9]} 14. f4 {[%clk 0:02:17.9]} 14... Ng4 {[%clk 0:01:31]} 15. Nf3 {[%clk
0:02:18]} 15... Nc5 {[%clk 0:01:24.9]} 16. O-O-O {[%clk 0:02:17.8]} 16... Be6
{[%clk 0:01:12.8]} 17. h3 {[%clk 0:02:01.6]} 17... Nf6 {[%clk 0:01:08.7]} 18.
Bxe6 {[%clk 0:01:50.5]} 18... Nxe6 {[%clk 0:01:09.6]} 19. Kb1 {[%clk 0:01:40.3]}
19... b5 {[%clk 0:00:57.3]} 20. a5 {[%clk 0:01:39.1]} 20... Kh8 {[%clk
0:00:34.3]} 21. Ng5 {[%clk 0:01:30.2]} 21... Qh5 {[%clk 0:00:21]} 22. g4 {[%clk
0:01:20.7]} 22... Qh4 {[%clk 0:00:18.5]} 23. e5 {[%clk 0:00:43.3]} 23... dxe5
{[%clk 0:00:14.9]} 24. Nxe6 {[%clk 0:00:42.8]} 24... fxe6 {[%clk 0:00:14.5]} 25.
fxe5 {[%clk 0:00:43.7]} 25... Nd5 {[%clk 0:00:13.4]} 26. Nxd5 {[%clk 0:00:44]}
26... exd5 {[%clk 0:00:14.3]} 27. Qxd5 {[%clk 0:00:44.7]} 27... Rad8 {[%clk
0:00:13.7]} 28. Qc6 {[%clk 0:00:44.8]} 28... Qe7 {[%clk 0:00:13.1]} 29. Qxa6
{[%clk 0:00:37.3]} 29... Qxe5 {[%clk 0:00:12.5]} 30. c3 {[%clk 0:00:37.9]} 30...
b4 {[%clk 0:00:12.4]} 31. Rxd8 {[%clk 0:00:17.4]} 31... Rxd8 {[%clk 0:00:13.3]}
32. Qc4 {[%clk 0:00:17.9]} 32... bxc3 {[%clk 0:00:12.8]} 33. bxc3 {[%clk
0:00:11.2]} 33... Qxa5 {[%clk 0:00:12.9]} 34. Rf1 {[%clk 0:00:10.2]} 34... Rd2
{[%clk 0:00:07.4]} 35. Qb3 {[%clk 0:00:08.4]} 35... Qxc3 {[%clk 0:00:06.5]} 36.
Qb8+ {[%clk 0:00:06.8]} 1-0

[Event "*** Titled Tuesday Blitz"]
[Site "Chess.com"]
[Date "2021.03.30"]
[Round "11"]
[White "EvgenyT"]
[Black "eljanov"]
[Result "1-0"]
[WhiteElo "2933"]
[BlackElo "2851"]
[TimeControl "180+1"]
[EndTime "12:08:31 PDT"]
[Termination "EvgenyT won by resignation"]

1. d4 {[%clk 0:02:58.8]} 1... Nf6 {[%clk 0:02:59.5]} 2. Nf3 {[%clk 0:02:58.5]}
2... e6 {[%clk 0:02:59]} 3. g3 {[%clk 0:02:57.1]} 3... d5 {[%clk 0:02:56.4]} 4.
Bg2 {[%clk 0:02:57.1]} 4... b5 {[%clk 0:02:56.5]} 5. O-O {[%clk 0:02:55.5]} 5...
Be7 {[%clk 0:02:56]} 6. a4 {[%clk 0:02:52]} 6... b4 {[%clk 0:02:56.2]} 7. c4
{[%clk 0:02:50.9]} 7... bxc3 {[%clk 0:02:56.6]} 8. bxc3 {[%clk 0:02:50.8]} 8...
O-O {[%clk 0:02:56]} 9. c4 {[%clk 0:02:50.6]} 9... c6 {[%clk 0:02:43.8]} 10. Bf4
{[%clk 0:02:43.8]} 10... Ba6 {[%clk 0:02:42.6]} 11. Nbd2 {[%clk 0:02:40.9]}
11... Nbd7 {[%clk 0:02:41]} 12. c5 {[%clk 0:02:22.3]} 12... Nh5 {[%clk
0:02:30.1]} 13. Re1 {[%clk 0:02:18.9]} 13... Nxf4 {[%clk 0:02:26.3]} 14. gxf4
{[%clk 0:02:18.8]} 14... Rb8 {[%clk 0:02:23.4]} 15. e3 {[%clk 0:02:07.2]} 15...
Qa5 {[%clk 0:02:12.2]} 16. Qc2 {[%clk 0:02:06.2]} 16... Rb4 {[%clk 0:02:07.1]}
17. f5 {[%clk 0:01:59.8]} 17... Rfb8 {[%clk 0:01:45.6]} 18. fxe6 {[%clk
0:01:58.5]} 18... fxe6 {[%clk 0:01:46.5]} 19. Reb1 {[%clk 0:01:41.8]} 19... Bf6
{[%clk 0:01:42.2]} 20. Rxb4 {[%clk 0:01:21.1]} 20... Rxb4 {[%clk 0:01:42]} 21.
Bh3 {[%clk 0:01:14.6]} 21... Nf8 {[%clk 0:01:30]} 22. Qc3 {[%clk 0:01:11.3]}
22... Bd8 {[%clk 0:01:11.4]} 23. Nb3 {[%clk 0:00:50.9]} 23... Rxb3 {[%clk
0:00:48.8]} 24. Qxb3 {[%clk 0:00:51.8]} 24... Bc7 {[%clk 0:00:49.3]} 25. Rb1
{[%clk 0:00:36.4]} 25... Be2 {[%clk 0:00:49.5]} 26. Ng5 {[%clk 0:00:31]} 26...
e5 {[%clk 0:00:33]} 27. Qb7 {[%clk 0:00:29.2]} 27... h6 {[%clk 0:00:29.5]} 28.
Ne6 {[%clk 0:00:26.6]} 28... Nxe6 {[%clk 0:00:26.7]} 29. Bxe6+ {[%clk
0:00:26.2]} 29... Kh7 {[%clk 0:00:27.2]} 30. Bf5+ {[%clk 0:00:26.1]} 30... g6
{[%clk 0:00:25.1]} 31. Bh3 {[%clk 0:00:22]} 31... Bd3 {[%clk 0:00:23.2]} 32. Rd1
{[%clk 0:00:19.2]} 32... Bc2 {[%clk 0:00:18]} 33. Rc1 {[%clk 0:00:18.2]} 33...
Be4 {[%clk 0:00:18.1]} 34. Qxc6 {[%clk 0:00:17.2]} 34... exd4 {[%clk 0:00:18.5]}
35. Qd7+ {[%clk 0:00:16.6]} 35... Kh8 {[%clk 0:00:18.3]} 36. Qe8+ {[%clk
0:00:15.3]} 36... Kg7 {[%clk 0:00:18.6]} 37. Qe7+ {[%clk 0:00:15.2]} 37... Kh8
{[%clk 0:00:18.9]} 38. Be6 {[%clk 0:00:14.5]} 38... h5 {[%clk 0:00:16.5]} 39.
Qf7 {[%clk 0:00:13.8]} 1-0

[Event "*** Titled Tuesday Blitz"]
[Site "Chess.com"]
[Date "2021.03.30"]
[Round "11"]
[White "kuba2006"]
[Black "novocane"]
[Result "1-0"]
[WhiteElo "2342"]
[BlackElo "2229"]
[TimeControl "180+1"]
[EndTime "12:08:34 PDT"]
[Termination "kuba2006 won by resignation"]

1. e4 {[%clk 0:03:00.9]} 1... c5 {[%clk 0:02:59.5]} 2. Nf3 {[%clk 0:03:00.3]}
2... Nc6 {[%clk 0:02:59.8]} 3. d4 {[%clk 0:03:00.6]} 3... cxd4 {[%clk
0:03:00.4]} 4. Nxd4 {[%clk 0:03:01.5]} 4... e5 {[%clk 0:03:00.3]} 5. Nb5 {[%clk
0:02:59.3]} 5... d6 {[%clk 0:03:00.4]} 6. N1c3 {[%clk 0:02:58.8]} 6... a6 {[%clk
0:03:00.5]} 7. Na3 {[%clk 0:02:58.2]} 7... Be7 {[%clk 0:03:00.8]} 8. Nd5 {[%clk
0:02:55.3]} 8... Nf6 {[%clk 0:03:01]} 9. Nxf6+ {[%clk 0:02:54]} 9... Bxf6 {[%clk
0:03:01]} 10. Nc4 {[%clk 0:02:54.1]} 10... O-O {[%clk 0:02:56.2]} 11. Qxd6
{[%clk 0:02:49.8]} 11... Qxd6 {[%clk 0:02:54.1]} 12. Nxd6 {[%clk 0:02:50.7]}
12... Nb4 {[%clk 0:02:54.3]} 13. Bd3 {[%clk 0:02:43.7]} 13... Rd8 {[%clk
0:02:53.6]} 14. Nxc8 {[%clk 0:02:25]} 14... Raxc8 {[%clk 0:02:54.5]} 15. Ke2
{[%clk 0:02:11.2]} 15... Nxc2 {[%clk 0:02:38.9]} 16. Be3 {[%clk 0:02:07.9]}
16... Nxa1 {[%clk 0:02:35.4]} 17. Rxa1 {[%clk 0:02:05.7]} 17... Rd7 {[%clk
0:02:25.4]} 18. a4 {[%clk 0:02:01.4]} 18... Rcd8 {[%clk 0:02:16.3]} 19. Bc4
{[%clk 0:01:45.1]} 19... h6 {[%clk 0:02:09]} 20. a5 {[%clk 0:01:41.4]} 20... Bg5
{[%clk 0:02:02.9]} 21. Bb6 {[%clk 0:01:12.4]} 21... Rd2+ {[%clk 0:01:57.5]} 22.
Ke1 {[%clk 0:01:12]} 22... Rc8 {[%clk 0:01:43.6]} 23. b3 {[%clk 0:01:04.2]}
23... Rc2 {[%clk 0:01:22.7]} 24. Bd5 {[%clk 0:00:46.4]} 24... Rc1+ {[%clk
0:01:01.6]} 25. Rxc1 {[%clk 0:00:45]} 25... Rxc1+ {[%clk 0:01:01.6]} 26. Ke2
{[%clk 0:00:45]} 26... Rb1 {[%clk 0:00:56]} 27. Bxb7 {[%clk 0:00:40.4]} 27...
Rxb3 {[%clk 0:00:56]} 28. Bxa6 {[%clk 0:00:39.8]} 28... Be7 {[%clk 0:00:49.3]}
29. Bc4 {[%clk 0:00:29.9]} 29... Rb4 {[%clk 0:00:43.9]} 30. Kd3 {[%clk
0:00:27.5]} 30... Ra4 {[%clk 0:00:39]} 31. a6 {[%clk 0:00:22.7]} 31... Bd6
{[%clk 0:00:31.1]} 32. a7 {[%clk 0:00:21.5]} 32... Ra3+ {[%clk 0:00:24.7]} 33.
Kc2 {[%clk 0:00:20.7]} 33... Bc7 {[%clk 0:00:10.5]} 34. Bxc7 {[%clk 0:00:20.5]}
34... Rxa7 {[%clk 0:00:10.7]} 35. Bxe5 {[%clk 0:00:20.7]} 35... Re7 {[%clk
0:00:08.2]} 36. f4 {[%clk 0:00:18.2]} 36... Kf8 {[%clk 0:00:08.5]} 37. Bd6
{[%clk 0:00:18]} 1-0